bitfinex/quotes_SOLUSD_20230402
["timestamp","ask_amount","ask_price","bid_price","bid_amount"]
[1680444112064,10.0,20.833,20.82,17.0]
[1680444112754,10.0,20.833,20.819,20.0]
[1680444112950,10.0,20.833,20.821,10.0]
[1680444113251,10.0,20.833,20.822,17.0]
[1680444113451,111.9234,20.844,20.822,17.0]
[1680444113846,10.0,20.833,20.822,17.0]
[1680444114051,10.0,20.833,20.82,17.0]
[1680444115557,111.9234,20.844,20.82,17.0]
[1680444115756,111.9234,20.844,20.821,10.0]
[1680444116148,111.9234,20.844,20.823,10.0]
[1680444116354,33.599,20.834,20.824,17.0]
[1680444116554,33.599,20.834,20.825,10.0]
[1680444116866,33.599,20.834,20.826,17.0]
[1680444117245,33.599,20.834,20.827,10.0]
[1680444117450,33.599,20.834,20.829,10.0]
[1680444117651,33.599,20.834,20.827,10.0]
[1680444117855,33.599,20.834,20.828,17.0]
[1680444118457,33.599,20.834,20.826,17.0]
[1680444118659,151.9845,20.834,20.824,17.0]
[1680444119758,151.9845,20.834,20.823,10.0]
[1680444120062,151.9845,20.834,20.824,17.0]
[1680444120564,151.9845,20.834,20.823,10.0]
[1680444120565,10.0,20.833,20.818,17.2121209]
[1680444121760,151.9845,20.834,20.82,10.0]
[1680444121947,151.9845,20.834,20.82,27.0]
[1680444124643,10.0,20.833,20.82,17.0]
[1680444125450,10.0,20.833,20.818,7.2121209]
[1680444126967,10.0,20.833,20.82,17.0]
[1680444139569,151.9845,20.834,20.82,17.0]
[1680444139770,10.0,20.833,20.82,17.0]
[1680444147784,151.9845,20.834,20.82,17.0]
[1680444148671,10.0,20.833,20.82,17.0]
[1680444153593,151.9845,20.834,20.82,17.0]
[1680444154289,10.0,20.833,20.82,17.0]
[1680444158994,10.0,20.833,20.82,24.2121209]
[1680444161694,151.9845,20.834,20.82,24.2121209]
[1680444162273,33.599,20.834,20.821,10.0]
[1680444162475,33.599,20.834,20.822,37.0]
[1680444162785,33.599,20.834,20.823,17.2121209]
[1680444162997,33.599,20.834,20.825,10.0]
[1680444163292,33.599,20.834,20.827,10.0]
[1680444163495,16.791,20.844,20.829,10.0]
[1680444163697,33.599,20.834,20.831,10.0]
[1680444163906,33.599,20.834,20.832,17.0]
[1680444164391,33.599,20.834,20.832,24.2121209]
[1680444167190,33.599,20.834,20.832,17.0]
[1680444167601,33.599,20.834,20.831,17.0]
[1680444168496,33.599,20.834,20.83,7.2121209]
[1680444168798,33.599,20.834,20.831,24.2121209]
[1680444173301,33.599,20.834,20.828,74.75240553]
[1680444173482,33.599,20.834,20.828,81.96452643]
[1680444174303,33.099,20.834,20.829,10.0]
[1680444174499,33.099,20.834,20.83,20.0]
[1680444174703,33.099,20.834,20.832,10.0]
[1680444174885,33.099,20.834,20.833,17.0]
[1680444175607,33.099,20.834,20.832,10.0]
[1680444175906,33.099,20.834,20.833,17.0]
[1680444176302,33.099,20.834,20.832,10.0]
[1680444176606,33.099,20.834,20.833,17.0]
[1680444176803,33.099,20.834,20.831,17.0]
[1680444183208,33.099,20.834,20.83,20.0]
[1680444183397,33.099,20.834,20.829,20.0]
[1680444183598,33.099,20.834,20.822,68.88262356]
[1680444183899,33.099,20.834,20.823,10.0]
[1680444184214,33.099,20.834,20.825,10.0]
[1680444184413,33.099,20.834,20.826,20.0]
[1680444184616,33.099,20.834,20.827,17.0]
[1680444184813,33.099,20.834,20.828,20.0]
[1680444185013,33.099,20.834,20.829,17.0]
[1680444185513,33.099,20.834,20.83,20.0]
[1680444185715,33.099,20.834,20.831,17.0]
[1680444196009,33.099,20.834,20.831,24.2121209]
[1680444200430,33.099,20.834,20.833,10.0]
[1680444200614,33.099,20.834,20.833,27.0]
[1680444202533,33.099,20.834,20.833,17.0]
[1680444203532,33.099,20.834,20.833,10.0]
[1680444203712,33.099,20.834,20.833,27.0]
[1680444204224,16.791,20.844,20.833,17.0]
[1680444204429,33.599,20.834,20.833,17.0]
[1680444204914,33.599,20.834,20.831,7.2121209]
[1680444205114,33.599,20.834,20.832,20.0]
[1680444206331,33.599,20.834,20.833,17.0]
[1680444212133,33.599,20.834,20.832,20.0]
[1680444212515,33.599,20.834,20.828,17.2121209]
[1680444212719,33.599,20.834,20.829,20.0]
[1680444213633,33.599,20.834,20.83,17.0]
[1680444213832,33.599,20.834,20.831,20.0]
[1680444214136,33.599,20.834,20.832,17.0]
[1680444214442,33.599,20.834,20.831,20.0]
[1680444214620,33.599,20.834,20.829,20.0]
[1680444215918,33.599,20.834,20.83,17.0]
[1680444216118,33.599,20.834,20.831,20.0]
[1680444221036,33.599,20.834,20.833,10.0]
[1680444221251,33.599,20.834,20.831,20.0]
[1680444221426,33.599,20.834,20.833,17.0]
[1680444221922,33.599,20.834,20.832,17.0]
[1680444242367,33.599,20.834,20.831,20.0]
[1680444242558,33.599,20.834,20.829,20.0]
[1680444242958,33.599,20.834,20.828,10.0]
[1680444243158,33.599,20.834,20.829,20.0]
[1680444243968,33.599,20.834,20.828,10.0]
[1680444244165,33.599,20.834,20.829,37.0]
[1680444257085,33.599,20.834,20.829,34.5]
[1680444258088,33.599,20.834,20.83,17.2121209]
[1680444258279,33.599,20.834,20.832,10.0]
[1680444258466,33.599,20.834,20.833,17.0]
[1680444269894,33.599,20.834,20.833,24.2121209]
[1680444272995,33.599,20.834,20.833,44.2121209]
[1680444273188,33.599,20.834,20.833,102.84015297]
[1680444273390,33.599,20.834,20.833,154.40558019]
[1680444273582,33.599,20.834,20.833,95.77754812]
[1680444273787,33.599,20.834,20.833,88.56542722]
[1680444273988,33.599,20.834,20.833,51.56542722]
[1680444274189,33.599,20.834,20.826,10.0]
[1680444274495,33.599,20.834,20.829,10.0]
[1680444274686,33.599,20.834,20.83,20.0]
[1680444275788,33.599,20.834,20.831,17.0]
[1680444276593,33.599,20.834,20.83,20.0]
[1680444276795,33.599,20.834,20.827,20.0]
[1680444277901,33.599,20.834,20.828,17.0]
[1680444278097,33.599,20.834,20.829,20.0]
[1680444278291,33.599,20.834,20.83,17.0]
[1680444278497,33.599,20.834,20.831,20.0]
[1680444280695,33.599,20.834,20.833,10.0]
[1680444280897,33.599,20.834,20.833,27.0]
[1680444281403,33.599,20.834,20.833,17.0]
[1680444282596,33.599,20.834,20.832,17.0]
[1680444294716,33.599,20.834,20.833,17.2121209]
[1680444294923,33.599,20.834,20.833,34.2121209]
[1680444295124,33.599,20.834,20.833,54.2121209]
[1680444295799,33.599,20.834,20.833,20.0]
[1680444296009,33.599,20.834,20.832,10.0]
[1680444296207,33.599,20.834,20.833,20.0]
[1680444296598,33.599,20.834,20.833,27.2121209]
[1680444297215,33.599,20.834,20.833,44.2121209]
[1680444300415,33.599,20.834,20.824,599.0]
[1680444300625,33.599,20.834,20.827,10.0]
[1680444300828,33.599,20.834,20.828,20.0]
[1680444301420,33.599,20.834,20.828,27.2121209]
[1680444301810,33.599,20.834,20.829,17.0]
[1680444302120,33.599,20.834,20.83,20.0]
[1680444302428,33.599,20.834,20.831,17.0]
[1680444303919,33.599,20.834,20.831,24.2121209]
[1680444330147,33.599,20.834,20.833,24.2121209]
[1680444333543,33.599,20.834,20.833,7.2121209]
[1680444334946,33.599,20.834,20.833,24.2121209]
[1680444336646,33.599,20.834,20.833,17.0]
[1680444336834,33.599,20.834,20.831,17.0]
[1680444339654,33.599,20.834,20.831,24.2121209]
[1680444346146,33.599,20.834,20.831,130.52948911]
[1680444365684,33.599,20.834,20.831,24.2121209]
[1680444402198,33.599,20.834,20.831,78.94015297]
[1680444422614,33.599,20.834,20.831,24.2121209]
[1680444422927,33.599,20.834,20.831,17.0]
[1680444424222,10.0,20.833,20.83,20.0]
[1680444424431,10.0,20.833,20.831,20.0]
[1680444424719,10.0,20.833,20.829,20.0]
[1680444425235,10.0,20.833,20.826,10.0]
[1680444425528,33.599,20.834,20.827,20.0]
[1680444426132,33.599,20.834,20.826,10.0]
[1680444426310,33.599,20.834,20.827,37.0]
[1680444426514,33.599,20.834,20.828,20.0]
[1680444427642,33.599,20.834,20.825,20.0]
[1680444427821,33.599,20.834,20.826,17.0]
[1680444428022,33.599,20.834,20.827,20.0]
[1680444428541,33.599,20.834,20.829,10.0]
[1680444428720,33.599,20.834,20.83,20.0]
[1680444428914,33.599,20.834,20.827,27.2121209]
[1680444431032,32.599,20.834,20.828,10.0]
[1680444431217,32.599,20.834,20.829,20.0]
[1680444431418,32.599,20.834,20.827,27.2121209]
[1680444437036,33.599,20.834,20.827,27.2121209]
[1680444440927,10.0,20.843,20.827,27.2121209]
[1680444441132,33.599,20.834,20.827,27.2121209]
[1680444447947,33.599,20.834,20.827,81.94015297]
[1680444455442,33.599,20.834,20.827,27.2121209]
[1680444457157,10.0,20.833,20.818,395.3]
[1680444457339,10.0,20.833,20.82,30.0]
[1680444457666,10.0,20.833,20.816,61.94015297]
[1680444457954,10.0,20.833,20.817,7.2121209]
[1680444458342,10.0,20.833,20.818,17.0]
[1680444458846,10.0,20.833,20.819,7.2121209]
[1680444459241,10.0,20.833,20.82,20.0]
[1680444460048,10.0,20.831,20.816,54.72803207]
[1680444460250,10.0,20.829,20.815,19.205461]
[1680444461349,10.0,20.829,20.815,26.4175819]
[1680444468159,10.0,20.827,20.815,19.205461]
[1680444468358,10.0,20.825,20.815,19.205461]
[1680444468660,10.0,20.823,20.815,19.205461]
[1680444468962,10.0,20.821,20.811,7.2121209]
[1680444469145,10.0,20.821,20.803,10.0]
[1680444469346,10.0,20.819,20.806,27.2121209]
[1680444471557,10.0,20.819,20.806,7.2121209]
[1680444471750,17.0,20.818,20.802,47.8698917]
[1680444471954,10.0,20.817,20.797,38.93789833]
[1680444472262,10.0,20.815,20.8,10.0]
[1680444472556,10.0,20.815,20.8,7.2121209]
[1680444472765,10.0,20.815,20.801,10.0]
[1680444473064,10.0,20.815,20.801,17.2121209]
[1680444475351,10.0,20.815,20.802,7.2121209]
[1680444477249,10.0,20.817,20.802,7.2121209]
[1680444477458,10.0,20.819,20.804,10.0]
[1680444477960,10.0,20.819,20.805,7.2121209]
[1680444478790,10.0,20.819,20.804,10.0]
[1680444482372,10.0,20.819,20.803,27.0]
[1680444483274,10.0,20.819,20.803,17.0]
[1680444484982,10.0,20.819,20.805,10.0]
[1680444486261,114.082,20.822,20.805,10.0]
[1680444486461,114.082,20.822,20.807,10.0]
[1680444486665,114.082,20.822,20.808,20.0]
[1680444486862,114.082,20.822,20.809,10.0]
[1680444487068,114.082,20.822,20.81,20.0]
[1680444487472,114.082,20.822,20.81,27.2121209]
[1680444489088,109.9361,20.823,20.81,27.2121209]
[1680444489263,109.9361,20.823,20.811,17.0]
[1680444489593,109.9361,20.823,20.812,10.0]
[1680444489756,119.3565,20.832,20.813,17.0]
[1680444489960,119.3565,20.832,20.813,24.2121209]
[1680444489961,129.3565,20.832,20.813,24.2121209]
[1680444490261,129.3565,20.832,20.814,17.2121209]
[1680444490569,129.3565,20.832,20.815,24.2121209]
[1680444490878,129.3565,20.832,20.816,10.0]
[1680444491175,129.3565,20.832,20.816,7.2121209]
[1680444498484,16.8,20.833,20.818,10.0]
[1680444498667,16.8,20.833,20.819,37.0]
[1680444498868,16.8,20.833,20.82,10.0]
[1680444499083,16.8,20.833,20.821,37.0]
[1680444499281,16.8,20.833,20.822,10.0]
[1680444499685,16.8,20.833,20.821,37.0]
[1680444502388,10.30342551,20.832,20.821,37.0]
[1680444504582,10.30342551,20.832,20.821,20.0]
[1680444504985,10.0,20.83,20.818,20.0]
[1680444506368,0.30249867,20.829,20.818,20.0]
[1680444522295,0.30249867,20.829,20.818,27.2121209]
[1680444540911,0.30249867,20.829,20.817,118.3984]
[1680444541095,10.0,20.828,20.817,118.3984]
[1680444541711,10.0,20.826,20.813,6.79896136]
[1680444541901,10.0,20.824,20.813,6.79896136]
[1680444542409,10.0,20.822,20.813,6.79896136]
[1680444542902,10.0,20.82,20.813,6.79896136]
[1680444543103,10.0,20.82,20.809,236.89]
[1680444544299,0.29940727,20.819,20.809,236.89]
[1680444544502,0.29940727,20.819,20.811,10.0]
[1680444544703,0.29940727,20.819,20.81,20.0]
[1680444549123,10.0,20.822,20.81,20.0]
[1680444550228,0.30002579,20.821,20.81,20.0]
[1680444552824,0.30002579,20.821,20.809,236.89]
[1680444553027,10.0,20.82,20.809,236.89]
[1680444554326,0.29940727,20.819,20.809,236.89]
[1680444555909,10.0,20.818,20.809,236.89]
[1680444556314,10.0,20.816,20.809,236.89]
[1680444557129,17.0,20.817,20.809,236.89]
[1680444558336,10.29847927,20.816,20.809,236.89]
[1680444559223,17.0,20.817,20.809,236.89]
[1680444560324,10.29847927,20.816,20.809,236.89]
[1680444561325,10.0,20.816,20.809,236.89]
[1680444562835,10.0,20.814,20.809,236.89]
[1680444563639,10.0,20.812,20.809,236.89]
[1680444564423,10.0,20.814,20.809,236.89]
[1680444565124,0.297551,20.813,20.809,236.89]
[1680444566240,10.0,20.814,20.809,236.89]
[1680444567048,10.0,20.816,20.809,236.89]
[1680444567343,10.0,20.814,20.809,236.89]
[1680444568140,10.0,20.816,20.809,236.89]
[1680444568342,7.2121209,20.837,20.809,236.89]
[1680444569328,0.29816988,20.815,20.809,236.89]
[1680444570028,17.29816988,20.815,20.809,236.89]
[1680444570229,17.0,20.815,20.809,236.89]
[1680444571747,10.29786046,20.814,20.809,236.89]
[1680444572838,0.29786046,20.814,20.809,236.89]
[1680444573248,17.0,20.815,20.809,236.89]
[1680444574146,10.0,20.816,20.809,236.89]
[1680444574351,0.29786046,20.814,20.809,236.89]
[1680444575350,17.0,20.815,20.809,236.89]
[1680444576449,0.297551,20.813,20.809,236.89]
[1680444576646,17.297551,20.813,20.809,236.89]
[1680444577451,17.0,20.813,20.809,236.89]
[1680444578250,10.0,20.814,20.809,236.89]
[1680444578448,17.0,20.813,20.809,236.89]
[1680444581353,10.0,20.814,20.809,236.89]
[1680444581555,17.0,20.813,20.809,236.89]
[1680444581851,10.0,20.814,20.809,236.89]
[1680444582843,10.0,20.812,20.809,236.89]
[1680444583038,17.0,20.811,20.809,236.89]
[1680444583645,10.0,20.81,20.809,236.89]
[1680444583846,27.0,20.81,20.809,236.89]
[1680444584247,10.0,20.81,20.809,236.89]
[1680444584647,10.29724152,20.812,20.809,236.89]
[1680444584956,17.0,20.811,20.809,236.89]
[1680444601056,10.0,20.812,20.809,236.89]
[1680444601262,10.0,20.81,20.809,236.89]
[1680444601463,27.0,20.81,20.809,236.89]
[1680444602271,27.29662247,20.81,20.809,236.89]
[1680444603470,17.29662247,20.81,20.809,236.89]
[1680444604258,17.0,20.81,20.809,236.89]
[1680444617066,83.6919,20.809,20.797,19.222508]
[1680444617267,17.0,20.808,20.797,19.222508]
[1680444618273,0.29569367,20.807,20.797,19.222508]
[1680444619175,0.29569367,20.807,20.791,111.11]
[1680444619375,0.29569367,20.807,20.793,10.0]
[1680444619675,0.29569367,20.807,20.792,10.0]
[1680444621764,0.29569367,20.807,20.791,111.11]
[1680444621976,0.29569367,20.807,20.793,10.0]
[1680444623889,0.29569367,20.807,20.792,30.0]
[1680444624469,0.29569367,20.807,20.792,20.0]
[1680444631891,0.29569367,20.807,20.793,17.0]
[1680444632073,0.29569367,20.807,20.794,10.0]
[1680444632274,10.0,20.812,20.796,10.0]
[1680444632885,10.0,20.812,20.796,17.2121209]
[1680444633390,0.29693201,20.811,20.796,17.2121209]
[1680444633689,10.0,20.81,20.796,17.2121209]
[1680444633985,10.0,20.808,20.796,10.0]
[1680444634185,10.0,20.806,20.793,10.0]
[1680444634385,17.0,20.805,20.794,20.0]
[1680444634593,10.0,20.804,20.794,20.0]
[1680444634974,10.0,20.804,20.794,10.0]
[1680444635175,10.0,20.806,20.794,10.0]
[1680444636896,10.0,20.808,20.794,10.0]
[1680444637190,10.0,20.806,20.794,10.0]
[1680444637970,10.0,20.806,20.793,30.0]
[1680444638175,10.0,20.804,20.793,20.0]
[1680444638982,10.0,20.804,20.793,10.0]
[1680444639280,10.0,20.804,20.794,20.0]
[1680444640194,0.29445485,20.803,20.794,20.0]
[1680444640497,10.0,20.802,20.792,20.0]
[1680444640688,17.0,20.801,20.792,20.0]
[1680444641082,17.0,20.801,20.789,19.229898]
[1680444642182,0.29352542,20.8,20.789,19.229898]
[1680444642395,10.29352542,20.8,20.789,19.229898]
[1680444642580,10.0,20.798,20.789,19.229898]
[1680444643181,10.29352542,20.8,20.789,19.229898]
[1680444643489,10.0,20.798,20.789,19.229898]
[1680444643992,17.0,20.799,20.789,19.229898]
[1680444644879,0.29352542,20.8,20.789,19.229898]
[1680444645294,0.28151254,20.798,20.789,19.229898]
[1680444648199,17.0,20.799,20.789,19.229898]
[1680444650595,17.0,20.799,20.784,10.0]
[1680444651379,10.28151254,20.798,20.784,10.0]
[1680444652686,0.28151254,20.798,20.784,10.0]
[1680444655196,10.0,20.8,20.784,10.0]
[1680444655792,10.0,20.809,20.791,10.0]
[1680444655992,10.0,20.809,20.792,20.0]
[1680444656198,0.28182244,20.799,20.793,10.0]
[1680444656395,0.28182244,20.799,20.794,20.0]
[1680444657205,10.0,20.809,20.794,20.0]
[1680444657508,10.0,20.804,20.794,20.0]
[1680444657805,10.0,20.802,20.794,20.0]
[1680444658007,10.0,20.802,20.793,10.0]
[1680444658305,17.0,20.803,20.794,20.0]
[1680444658510,10.0,20.804,20.794,20.0]
[1680444659107,0.2836812,20.805,20.794,20.0]
[1680444659287,17.2836812,20.805,20.794,20.0]
[1680444659802,0.2836812,20.805,20.794,20.0]
[1680444661506,17.2836812,20.805,20.794,20.0]
[1680444661687,17.2836812,20.805,20.791,124.0329]
[1680444661888,10.0,20.804,20.791,114.0329]
[1680444662086,10.0,20.802,20.791,114.0329]
[1680444662299,17.0,20.801,20.791,114.0329]
[1680444662502,10.0,20.8,20.791,114.0329]
[1680444662695,10.0,20.798,20.791,114.0329]
[1680444663008,10.0,20.8,20.791,114.0329]
[1680444663187,10.0,20.798,20.791,114.0329]
[1680444663393,10.0,20.8,20.791,114.0329]
[1680444663600,17.0,20.799,20.791,114.0329]
[1680444664908,10.0,20.8,20.791,114.0329]
[1680444665408,10.0,20.802,20.791,114.0329]
[1680444666209,10.0,20.804,20.791,114.0329]
[1680444666420,10.0,20.802,20.791,114.0329]
[1680444671311,17.0,20.801,20.791,114.0329]
[1680444671613,10.0,20.8,20.791,114.0329]
[1680444671812,10.0,20.798,20.791,114.0329]
[1680444673014,17.0,20.799,20.791,114.0329]
[1680444674216,10.28151254,20.798,20.791,114.0329]
[1680444674515,10.28151254,20.798,20.783,19.23624]
[1680444674713,0.28151254,20.798,20.784,10.0]
[1680444675215,10.0,20.8,20.785,116.6906]
[1680444675515,10.0,20.8,20.786,10.0]
[1680444676015,10.0,20.802,20.786,10.0]
[1680444676216,10.0,20.8,20.786,10.0]
[1680444676821,10.0,20.8,20.785,116.6906]
[1680444677316,0.28182244,20.799,20.785,116.6906]
[1680444678318,10.0,20.8,20.785,116.6906]
[1680444679221,0.28151254,20.798,20.785,116.6906]
[1680444680217,10.0,20.8,20.785,116.6906]
[1680444681221,0.46970406,20.799,20.785,116.6906]
[1680444682307,10.0,20.8,20.785,116.6906]
[1680444683222,0.28182244,20.799,20.785,116.6906]
[1680444686227,0.46970406,20.799,20.785,116.6906]
[1680444686726,17.46970406,20.799,20.785,116.6906]
[1680444687327,17.28182244,20.799,20.785,116.6906]
[1680444688236,17.0,20.799,20.785,116.6906]
[1680444690228,10.0,20.798,20.785,116.6906]
[1680444690417,17.0,20.797,20.785,116.6906]
[1680444691335,17.28120261,20.797,20.785,116.6906]
[1680444693438,10.0,20.796,20.785,116.6906]
[1680444693628,10.0,20.794,20.785,116.6906]
[1680444693823,17.0,20.793,20.785,116.6906]
[1680444694028,10.0,20.792,20.785,116.6906]
[1680444694434,10.0,20.792,20.783,19.235979]
[1680444694628,17.0,20.791,20.784,20.0]
[1680444694844,10.0,20.79,20.784,20.0]
[1680444695030,17.0,20.789,20.784,20.0]
[1680444695342,10.0,20.792,20.784,20.0]
[1680444695551,17.0,20.791,20.784,20.0]
[1680444698242,0.34879035,20.79,20.784,20.0]
[1680444698433,10.34879035,20.79,20.784,20.0]
[1680444699240,0.34879035,20.79,20.784,20.0]
[1680444700037,0.34879035,20.79,20.782,10.0]
[1680444700226,10.0,20.794,20.783,20.0]
[1680444700426,10.0,20.792,20.783,20.0]
[1680444701442,17.0,20.793,20.783,20.0]
[1680444701652,10.0,20.794,20.783,20.0]
[1680444702352,0.69835604,20.791,20.783,20.0]
[1680444703253,10.0,20.794,20.783,20.0]
[1680444703453,10.0,20.794,20.782,10.0]
[1680444703653,10.0,20.794,20.783,20.0]
[1680444703834,10.0,20.792,20.783,20.0]
[1680444704442,10.0,20.792,20.782,10.0]
[1680444704644,10.0,20.792,20.783,20.0]
[1680444704851,10.0,20.79,20.779,111.371]
[1680444705343,10.0,20.788,20.779,111.371]
[1680444705542,10.0,20.786,20.779,111.371]
[1680444706327,10.0,20.788,20.779,111.371]
[1680444708343,10.0,20.786,20.779,111.371]
[1680444708838,17.0,20.787,20.779,111.371]
[1680444710834,10.0,20.788,20.779,111.371]
[1680444711034,17.0,20.787,20.779,111.371]
[1680444711235,0.34723929,20.786,20.779,111.371]
[1680444711435,10.34723929,20.786,20.779,111.371]
[1680444713549,0.34723929,20.786,20.779,111.371]
[1680444714250,17.0,20.787,20.778,19.240284]
[1680444715052,10.0,20.786,20.778,19.240284]
[1680444715255,17.0,20.785,20.778,19.240284]
[1680444716251,10.34723929,20.786,20.778,19.240284]
[1680444717457,10.0,20.784,20.778,19.240284]
[1680444718458,17.34685143,20.785,20.778,19.240284]
[1680444720151,17.34685143,20.785,20.769,17.2121209]
[1680444721058,17.34685143,20.785,20.769,7.2121209]
[1680444721059,10.0,20.784,20.769,7.2121209]
[1680444721246,17.0,20.783,20.769,7.2121209]
[1680444721447,10.0,20.782,20.769,7.2121209]
[1680444721660,17.0,20.781,20.769,7.2121209]
[1680444722044,10.0,20.78,20.769,7.2121209]
[1680444722250,17.0,20.779,20.768,109.7512]
[1680444726364,10.34413538,20.778,20.768,109.7512]
[1680444727459,10.0,20.776,20.768,109.7512]
[1680444729463,10.0,20.774,20.764,6.80894098]
[1680444729674,10.0,20.772,20.764,6.80894098]
[1680444731764,10.0,20.774,20.764,6.30894098]
[1680444731969,10.0,20.772,20.764,6.30894098]
[1680444732470,10.0,20.774,20.764,6.30894098]
[1680444732650,10.0,20.772,20.764,6.30894098]
[1680444733353,0.4572944,20.775,20.764,6.30894098]
[1680444734261,0.6859416,20.775,20.764,6.30894098]
[1680444735268,0.4572944,20.775,20.764,6.30894098]
[1680444735468,0.4572944,20.775,20.769,19.248075]
[1680444736263,10.0,20.784,20.769,19.248075]
[1680444738370,0.3445235,20.779,20.769,19.248075]
[1680444739175,17.3445235,20.779,20.769,19.248075]
[1680444739373,0.3445235,20.779,20.769,19.248075]
[1680444740272,10.0,20.784,20.769,19.248075]
[1680444741264,0.45936467,20.779,20.769,19.248075]
[1680444741466,10.0,20.778,20.769,19.248075]
[1680444741660,17.0,20.777,20.769,19.248075]
[1680444741874,10.0,20.776,20.769,19.248075]
[1680444742076,10.0,20.774,20.769,19.248075]
[1680444742276,17.0,20.773,20.769,19.248075]
[1680444742467,10.0,20.774,20.769,19.248075]
[1680444742667,17.0,20.773,20.769,19.248075]
[1680444742978,10.0,20.774,20.769,19.248075]
[1680444743988,10.0,20.776,20.769,19.248075]
[1680444744167,10.0,20.774,20.769,19.248075]
[1680444745279,10.0,20.778,20.769,19.248075]
[1680444747283,10.0,20.776,20.769,19.248075]
[1680444748484,0.6859416,20.775,20.769,19.248075]
[1680444749486,10.0,20.776,20.769,19.248075]
[1680444749969,10.0,20.774,20.769,19.248075]
[1680444750283,10.68516506,20.774,20.769,19.248075]
[1680444750782,17.0,20.773,20.769,19.248075]
[1680444751082,10.0,20.772,20.769,19.248075]
[1680444752385,0.682835,20.771,20.769,19.248075]
[1680444752887,0.682835,20.771,20.764,6.30894098]
[1680444753977,7.182835,20.772,20.764,6.30894098]
[1680444754387,0.68205817,20.77,20.764,6.30894098]
[1680444755278,7.182835,20.772,20.764,6.30894098]
[1680444755887,10.0,20.77,20.764,6.30894098]
[1680444757378,17.0,20.769,20.764,6.30894098]
[1680444758584,10.0,20.77,20.764,6.30894098]
[1680444758790,17.0,20.769,20.764,6.30894098]
[1680444759689,7.182835,20.772,20.764,6.30894098]
[1680444760899,10.0,20.77,20.764,6.30894098]
[1680444762273,10.0,20.768,20.764,6.30894098]
[1680444765193,10.0,20.77,20.764,6.30894098]
[1680444765399,17.0,20.769,20.764,6.30894098]
[1680444766690,10.0,20.77,20.764,6.30894098]
[1680444767479,7.182835,20.772,20.764,6.30894098]
[1680444767679,10.0,20.774,20.764,6.30894098]
[1680444767680,10.0,20.778,20.764,6.30894098]
[1680444767886,10.0,20.778,20.764,13.52106188]
[1680444768284,10.0,20.778,20.764,6.30894098]